Cogmind - Beta 17 @@@ ROGUE MODE // 2026.07.30 @ 20:38:48 Player: TheSkyeDoctor Result: Core melted Performance ------------- Evolutions (2) 1000 Regions Visited (4) 800 Robots Destroyed (50) 250 Value Destroyed (1266) 1266 Prototype IDs (4) 80 Alien Tech Used (0) 0 Bonus (0) 0 TOTAL SCORE: 3396 Bonus ------- None Cogmind --------- Core Integrity 0/550 Matter 20/300 Energy 78/100 System Corruption 0% Temperature Critical (615) Movement Core (50) Location -8/Storage Parts ------- > --- POWER (1) -------- (None) > --- PROPULSION (4) --- (None) > --- UTILITY (2) ------ Signal Interpreter > --- WEAPON (4) ------- (None) > --- INVENTORY (5) ---- Wheel Improved Terrain Scanner Light Armor Plating Improved Medium Laser Katana Peak State ------------ > --- POWER ------------ Light Deuterium Engine > --- PROPULSION ------- Light Treads Light Treads Light Treads Improved Treads > --- UTILITY ---------- Large Storage Unit Signal Interpreter > --- WEAPON ----------- Improved Lightning Gun Improved Medium Laser Light Assault Rifle Enhanced Autogun > --- INVENTORY -------- Light Nuclear Core Light Treads Wheel Improved Heat Sink Improved Terrain Scanner Light Armor Plating Enhanced Autogun Enhanced Autogun Enhanced Autogun Flak Cannon Flak Cannon Grenade Launcher Rocket Launcher Hammer Katana [Rating: 27] Favorites ----------- Power Light Deuterium Engine Engine Light Deuterium Engine Power Core Light Nuclear Core Propulsion Light Treads Treads Light Treads Utility Small Storage Unit Device Improved Heat Sink Storage Small Storage Unit Processor Signal Interpreter Weapon Medium Laser Energy Gun Medium Laser Ballistic Gun Heavy Battle Rifle Ballistic Cannon Light Cannon Launcher Grenade Launcher Impact Weapon Hammer Build | -11 -10 -10 -8 -8 ------- Run | Yrd Mat Sub Mat Sto Slots Evolved 4 | . . . 4 . Power . | . . . . . Propulsion 2 | . . . 2 . Utility . | . . . . . Weapon 2 | . . . 2 . Parts Attached 37 | 7 3 6 9 12 Power 4 | 1 1 . 1 1 Engine 3 | 1 1 . 1 . Core 1 | . . . . 1 Reactor . | . . . . . Propulsion 10 | 2 . 2 3 3 Treads 10 | 2 . 2 3 3 Leg . | . . . . . Wheel . | . . . . . Hover . | . . . . . Flight . | . . . . . Utility 5 | 2 1 1 1 . Device 2 | 1 1 . . . Storage 2 | 1 . . 1 . Processor 1 | . . 1 . . Hackware . | . . . . . Protection . | . . . . . Artifact . | . . . . . Weapon 18 | 2 1 3 4 8 Energy Gun 5 | 2 . . 2 1 Energy Cannon . | . . . . . Ballistic Gun 6 | . . 1 2 3 Ballistic Cannon 4 | . 1 1 . 2 Launcher 2 | . . . . 2 Special Weapon . | . . . . . Impact Weapon 1 | . . 1 . . Slashing Weapon . | . . . . . Piercing Weapon . | . . . . . Special Melee Weapon . | . . . . . Unidentified Prototypes 4 | . . . 3 1 Parts Lost 25 | . 2 6 1 16 Power 4 | . 1 1 . 2 Propulsion 7 | . . 2 . 5 Utility 2 | . 1 . . 1 Weapon 12 | . . 3 1 8 Highest Loss Streak 16 | . 1 3 1 16 To Critical Strikes . | . . . . . Average Backups 6 | 1 5 4 5 13 Power . | . . . . . Propulsion 1 | . 2 2 1 1 Utility 1 | . 1 1 2 3 Weapon 3 | . . 1 2 8 Tool/Special . | . . . . . Unused Backups 6 | 1 . . . 5 Power . | . . . . . Propulsion 2 | 1 . . . 1 Utility 3 | . . . . 3 Weapon 1 | . . . . 1 Tool/Special . | . . . . . Average Slot Usage (%) 90 | . 99 88 73 96 Engine 6 | . 14 3 3 8 Treads 28 | . 28 27 21 33 Device 7 | . 13 12 . . Storage 11 | . 14 14 9 8 Processor 4 | . . 1 9 9 Energy Gun 10 | . 23 5 8 10 Ballistic Gun 12 | . . 7 18 23 Ballistic Cannon 4 | . 4 9 2 . Impact Weapon 1 | . . 4 . . Peak Build Rating 27 | 7 9 12 24 27 Average Rating 14 | 5 7 10 16 24 On Entrance 10 | . 7 9 10 24 Avg Prop Armor Cover (%) 7 | . . . . 7 Naked Turns . | . . . . . Heaviest Build 37 | 13 14 14 36 37 Greatest Support 83 | 40 40 40 83 83 Greatest Overweight (x) 1 | . . . . 1 Average Overweight (x) . | . . . . . Largest Inventory Capacity 15 | 8 8 8 15 15 Average Capacity 10 | 7 8 8 14 14 Most Carried 15 | 3 7 6 11 15 Average Carried 6 | 1 5 4 5 13 Final Capacity 15 | 8 8 8 15 5 Final Carried 11 | 3 6 4 11 5 Class Distribution -------------------- 62% | Mutant 25% | Scavenger-Gunner 11% | Gunner Dominant Class ---------------- Mutant | -10/Materials Mutant | -10/Subcaves Gunner | -8/Materials Scavenger-Gunner | -8/Storage Resources | -11 -10 -10 -8 -8 ----------- Run | Yrd Mat Sub Mat Sto Matter Collected 1031 | 270 58 179 177 347 Remotely . | . . . . . Salvage Created 1817 | 204 208 210 269 926 Parts 105 | 11 9 17 15 53 Haulers Intercepted 5 | . 1 . . 4 Recyclers Shooed 1 | . . . . 1 Parts Field Recycled . | . . . . . Retrieved Matter . | . . . . . Parts Self-Destructed 11 | . . 11 . . Prevented . | . . . . . Parts Restored . | . . . . . Kills | -11 -10 -10 -8 -8 ------- Run | Yrd Mat Sub Mat Sto Combat Hostiles Destroyed 33 | . 6 8 4 15 Guns 23 | . 3 5 4 11 Cannons 6 | . 3 2 . 1 AOE 3 | . . . . 3 Classes Destroyed 11 | 3 4 1 2 1 Worker 1 | 1 . . . . Builder 2 | . 1 . . 1 Tunneler 4 | 4 . . . . Hauler 5 | . 1 . . 4 Recycler 3 | 1 . . 2 . Operator 1 | . . . . 1 Watcher 1 | . . . 1 . Swarmer 9 | . 3 3 3 . Grunt 8 | . 3 . . 5 Sentry 11 | . . . 1 10 Subdweller 5 | . . 5 . . Best Kill Streak 10 | 3 4 4 4 10 Combat Bots Only 7 | . 3 4 3 7 Max Kills in Single Turn 2 | 1 1 1 2 2 Gunslinging . | . . . . . Exploded 1 | . . . . 1 Melee . | . . . . . Uniques/NPCs Destroyed . | . . . . . Combat | -11 -10 -10 -8 -8 -------- Run | Yrd Mat Sub Mat Sto Hostile Shots Fired 296 | . 61 51 34 150 Missed 58 | . 17 19 7 15 Hits 238 | . 44 32 27 135 Projectile 238 | . 44 32 27 135 Critical Strikes 10 | . 1 2 1 6 Damage Taken 3750 | . 449 662 240 2399 Core 866 | . 47 180 23 616 Absorbed by Shields . | . . . . . Core Remaining (%) 54 | 100 . 9 . . Volleys Fired 126 | 11 31 18 13 53 Largest 4 | 2 2 2 4 4 Hottest 161 | 100 100 80 134 161 Shots Fired 332 | 22 62 34 39 175 Gun 281 | 22 44 18 33 164 Cannon 48 | . 18 16 6 8 Launcher 3 | . . . . 3 Special . | . . . . . Kinetic 195 | . 18 28 26 123 Thermal 121 | 22 44 6 13 36 Explosive 3 | . . . . 3 Electromagnetic 13 | . . . . 13 Robot Hit Streak 22 | 13 6 22 3 10 Robot Miss Streak 9 | 2 4 3 4 9 Penetration Max . | . . . . . Secondary Targets . | . . . . . Shots Hit Robots 191 | 16 35 29 17 94 Core Hits 84 | 7 11 11 8 47 Critical Kills . | . . . . . Critical Parts Destroyed 2 | . . 1 . 1 Critical Strikes 8 | 1 3 1 1 2 Burn 5 | 1 3 . . 1 Destroy 1 | . . . . 1 Blast 1 | . . . 1 . Smash 1 | . . 1 . . Melee Attacks 6 | . . 6 . . Impact 6 | . . 6 . . Slashing . | . . . . . Piercing . | . . . . . Sneak Attacks . | . . . . . Combat Hostiles . | . . . . . Follow-up Attacks . | . . . . . Damage Inflicted 3600 | 202 504 589 420 1885 Guns 2604 | 202 363 288 356 1395 Cannons 619 | . 141 186 64 228 Explosions 258 | . . . . 258 Melee 115 | . . 115 . . Ramming 4 | . . . . 4 Kinetic 1902 | . 141 424 298 1039 Thermal 1059 | 202 363 50 122 322 Explosive 258 | . . . . 258 Electromagnetic 262 | . . . . 262 Impact 115 | . . 115 . . Slashing . | . . . . . Piercing . | . . . . . Highest Corruption . | . . . . . Average Corruption . | . . . . . Corruption Purged . | . . . . . Corruption Blocked . | . . . . . Overload Shots . | . . . . . Overflow Damage 32 | . . 32 . . Projectiles . | . . . . . Explosions . | . . . . . Melee 32 | . . 32 . . Knockbacks 10 | . 1 4 2 3 Impact 1 | . . 1 . . Kinetic 9 | . 1 3 2 3 Secondary . | . . . . . Self-Inflicted Damage 26 | . . . . 26 Shots 1 | . . . . 1 Rammed 1 | . . . . 1 Targets Rammed 1 | . . . . 1 Kicked . | . . . . . Crushed . | . . . . . Highest Temperature 751 | 156 186 . 301 751 Average Temperature 206 | 59 72 . 161 298 Received Heat Transfer 1224 | . 171 99 36 918 Effects 57 | . . . . 57 Shutdowns 5 | . . . . 5 Energy Bleed 4 | . . . . 4 Interference 13 | . . . . 13 Matter Decay 3 | . . . . 3 Short Circuit 6 | . . . . 6 Damage (minor) 7 | . . . . 7 Damage (major) 16 | . . . . 16 Damage (core) 3 | . . . . 3 Siege Activations . | . . . . . Martial Activations . | . . . . . Shielding Activations . | . . . . . Robots Disrupted . | . . . . . Combat Hostiles . | . . . . . Robots Corrupted 1 | . . 1 . . Combat Hostiles 1 | . . 1 . . Parts Fried 1 | . . 1 . . Impact Corruptions 2 | . . 2 . . Robots Melted . | . . . . . Combat Hostiles . | . . . . . Parts Melted 7 | 4 2 . . 1 Heat Transferred 3145 | 666 1295 148 259 777 Parts Sabotaged . | . . . . . Parts Stolen . | . . . . . Parts Stripped . | . . . . . Power Chain Reactions . | . . . . . Alert | -11 -10 -10 -8 -8 ------- Run | Yrd Mat Sub Mat Sto Maximum Alert Level . | . . . . . Low Security (%) 100 | 100 100 . 100 100 Level 1 . | . . . . . Level 2 . | . . . . . Level 3 . | . . . . . Level 4 . | . . . . . Level 5 . | . . . . . High Security . | . . . . . Max Security . | . . . . . Peak Influence 170 | 10 92 . 55 170 Initial . | . . . . . Average 20 | 1 18 . 10 32 Influence Increases 948 | 30 177 70 118 553 Destroy 0b10 Robot/C 560 | . 120 60 80 300 Destroy 0b10 Robot/NC 85 | 30 10 . 15 30 Destroy Leader 192 | . 32 10 22 128 Successful Hack 7 | . . . . 7 Disable Machine 30 | . . . . 30 Destroy Structure 29 | . . . 1 28 Lose Combat Pursuer 45 | . 15 . . 30 Influence Decreases 790 | 30 101 146 115 398 Entered New Map 40 | . . 37 . 3 Time Decay 560 | 30 91 99 105 235 Lost Part 190 | . 10 10 10 160 Squads Dispatched 4 | . 1 . . 3 Investigation 2 | . . . . 2 Extermination . | . . . . . Reinforcement 2 | . 1 . . 1 Assault . | . . . . . Garrison . | . . . . . Intercept . | . . . . . Searches Triggered . | . . . . . Construction Impeded . | . . . . . Haulers Reinforced . | . . . . . Active Scanning Responses . | . . . . . Cargo Convoy Interrupts . | . . . . . Stealth | -11 -10 -10 -8 -8 --------- Run | Yrd Mat Sub Mat Sto Distress Signals 2 | . . . . 2 Communications Jammed . | . . . . . Distress Signals . | . . . . . Times Spotted 45 | . 8 9 7 21 Peak Tracking Total 8 | . 3 3 3 8 Tactical Retreats 2 | . 1 . . 1 Traps | -11 -10 -10 -8 -8 ------- Run | Yrd Mat Sub Mat Sto Traps Triggered 4 | . . 2 . 2 Indirectly . | . . . . . Trap Hack Attempts . | . . . . . Triggered . | . . . . . Disarmed . | . . . . . Reprogrammed . | . . . . . Reused . | . . . . . Traps Extracted . | . . . . . Installed . | . . . . . Triggered . | . . . . . Machines | -11 -10 -10 -8 -8 ---------- Run | Yrd Mat Sub Mat Sto Machines Disabled 2 | . . . . 2 Max in Single Turn 1 | . . . . 1 Machines Repaired . | . . . . . Machines Dismantled . | . . . . . Machines Sabotaged . | . . . . . Overloaded Fab Kills . | . . . . . Hacking | -11 -10 -10 -8 -8 --------- Run | Yrd Mat Sub Mat Sto Machines Accessed 5 | . . . 2 3 Terminals 5 | . . . 2 3 Fabricators . | . . . . . Repair Stations . | . . . . . Recycling Units . | . . . . . Scanalyzers . | . . . . . Garrison Access . | . . . . . Total Hacks 9 | . . . 6 3 Successful 3 | . . . . 3 Failed 6 | . . . 6 . Catastrophic . | . . . . . Database Lockouts . | . . . . . Manual 6 | . . . 6 . Terminals 9 | . . . 6 3 Fabricators . | . . . . . Repair Stations . | . . . . . Recycling Units . | . . . . . Scanalyzers . | . . . . . Garrison Access . | . . . . . Terminal Hacks 3 | . . . . 3 Open Door 3 | . . . . 3 Fabricator Hacks . | . . . . . Repair Station Hacks . | . . . . . Recycling Unit Hacks . | . . . . . Scanalyzer . | . . . . . Garrison Access Hacks . | . . . . . Unauthorized Hacks . | . . . . . Terminals . | . . . . . Fabricators . | . . . . . Repair Stations . | . . . . . Recycling Units . | . . . . . Scanalyzers . | . . . . . Garrison Access . | . . . . . Data Cores Recovered 1 | . . . . 1 Used . | . . . . . Hacking Detections 2 | . . . 2 . Full Trace Events . | . . . . . Feedback Events . | . . . . . Feedback Blocked . | . . . . . Robot Schematics Acquired . | . . . . . Robots Built . | . . . . . Authchips . | . . . . . Time . | . . . . . Total Robot Build Rating . | . . . . . Part Schematics Acquired . | . . . . . Parts Built . | . . . . . Authchips . | . . . . . Time . | . . . . . Total Part Build Rating . | . . . . . Part Studies Acquired . | . . . . . Parts Repaired . | . . . . . Time . | . . . . . Parts Recycled . | . . . . . Recycled Matter . | . . . . . Retrieved Matter . | . . . . . Retrieved Components . | . . . . . Parts Scanalyzed . | . . . . . Part Schematics Acquired . | . . . . . Parts Damaged . | . . . . . Bothacking | -11 -10 -10 -8 -8 ------------ Run | Yrd Mat Sub Mat Sto Used RIF Installer . | . . . . . Robots Hacked . | . . . . . Non-combat . | . . . . . Combat . | . . . . . Robot Hacks Applied . | . . . . . Relay Couplers Released . | . . . . . Fabnet Peak Effective % . | . . . . . Robots Rewired . | . . . . . Allies Hacked . | . . . . . Hacks Repelled . | . . . . . Allies | -11 -10 -10 -8 -8 -------- Run | Yrd Mat Sub Mat Sto Total Allies . | . . . . . Largest Group . | . . . . . Highest-Rated Group . | . . . . . Highest-Rated Ally . | . . . . . Total Orders . | . . . . . Ally Attacks . | . . . . . Total Damage . | . . . . . Kills . | . . . . . Allies Corrupted . | . . . . . Allies Melted . | . . . . . Intel | -11 -10 -10 -8 -8 ------- Run | Yrd Mat Sub Mat Sto Active Infowar (turns) 406 | 85 321 . . . Seismic 406 | 85 321 . . . Robot Analysis Total . | . . . . . Derelict Logs Recovered . | . . . . . Drone Launches . | . . . . . Drone Recoveries . | . . . . . Exploration | -11 -10 -10 -8 -8 ------------- Run | Yrd Mat Sub Mat Sto Turns Passed 2858 | 191 458 1051 408 750 Spaces Moved 1468 | 93 197 601 217 360 Core 4 | 4 . . . . Treads 1464 | 89 197 601 217 360 Legs . | . . . . . Wheels . | . . . . . Hover . | . . . . . Flight . | . . . . . Fastest Speed 50 | 50 160 160 160 160 Average Speed 159 | 155 160 160 160 160 Slowest Speed 240 | 160 160 160 160 240 Overloaded Moves . | . . . . . Propulsion Burnouts . | . . . . . Robots Hopped . | . . . . . Potential Cave-ins . | . . . . . Cave-ins Triggered . | . . . . . Exploration Rate (%) 33 | 6 44 37 18 61 Regions Visited 4 Branch Regions 2 Pre-discovered Areas . | . . . . . Known Exits Taken 2 | . . 1 1 . Unknown Exits Taken 2 | 1 1 . . . Scrap Searched 2 | . . 2 . . Spaces Dug . | . . . . . Terrain Destroyed 28 | . . . 1 27 Melee . | . . . . . Projectile 2 | . . . 1 1 AOE 26 | . . . . 26 Terrain Rammed . | . . . . . Walls Destroyed . | . . . . . Machines Disabled . | . . . . . Actions | -11 -10 -10 -8 -8 --------- Run | Yrd Mat Sub Mat Sto Total 1732 | 115 277 645 247 448 Wait 58 | . 43 12 . 3 Move 1464 | 92 196 600 216 360 Hop . | . . . . . Pick Up 21 | 4 4 2 6 5 Fast Attach 21 | 7 1 1 7 5 Attach 13 | . 1 4 . 8 Detach 6 | . . . 1 5 Swap 5 | . 1 2 2 . Drop 10 | 1 . . 2 7 Fire 126 | 11 31 18 13 53 Melee 6 | . . 6 . . Ram . | . . . . . Kick . | . . . . . Crush 1 | . . . . 1 Escape Stasis . | . . . . . Rewire 1 | . . . . 1 Trap . | . . . . . Miscellaneous . | . . . . . Route ------- -11/Scrapyard -10/Materials -10/Subcaves -8/Materials -8/Storage (discovered 1 exit: [*Fac]) History --------- Turn | Location | Event 5 | -11/Scrapyard | Discovered new exit (range 14) 192 | -11/Scrapyard | Entered Materials 307 | -10/Materials | Build established: Mutant 610 | -10/Materials | Discovered new exit (range 6) 650 | -10/Materials | Entered Subcaves 1068 | -10/Subcaves | Disturbed a concealed Subdweller 1094 | -10/Subcaves | Core integrity fell below 50% 1122 | -10/Subcaves | Lost 3 parts (1n2w) 1395 | -10/Subcaves | Ambushed by Subdwellers from Twisted Machinery 1417 | -10/Subcaves | Core integrity fell below 20% 1593 | -10/Subcaves | Discovered new exit (range 8) 1695 | -10/Subcaves | Identified exit to Materials 1701 | -10/Subcaves | Entered Materials 1701 | -8/Materials | Evolved 4 slots: Propulsion x2, Weapon x2 2011 | -8/Materials | Discovered new exit (range 16) 2034 | -8/Materials | Identified exit to Storage 2109 | -8/Materials | Entered Storage 2364 | -8/Storage | Build established: Scavenger-Gunner 2483 | -8/Storage | Discovered new exit (range 16) 2840 | -8/Storage | Core integrity fell below 50% 2853 | -8/Storage | Destroyed 7 combat bots 2855 | -8/Storage | Core integrity fell below 20% 2860 | -8/Storage | Core melted Last Messages --------------- 02851_ Flak Cannon destroyed. 02852_ Overheating: Core damaged (-99). 02853_ Flak Cannon broken. 02853_ Overheating: Short circuit. 02853_ Broken Flak Cannon destroyed. 02853_ Y-45 Defender destroyed. 02854_ Rocket Launcher destroyed. 02855_ Overheating: Core damaged (-66). 02856_ G-47 Trooper destroyed. 02856_ Lrg. Storage Unit destroyed. 02857_ Overheating: Signal Interpreter damaged (-2). 02857_ The unstable cave ceiling collapses. 02857_ R-06 Scavenger sends out distress signal. 02858_ Overheating: Energy bleed (-22). 02858_ G-50 Soldier destroyed. 02859_ Overheating: Matter decay (-2). 02859_ Grenade Launcher destroyed. 02859_ Critical hit (Burn: +37). 02860_ Overheating: Core damaged (-99). Map ----- +----------------------------------------------------+ | ???????????????###T# #?????????# # # | | ???????????????# [ + +??????? ?# # | | ???????????????##### ###??????#### ##?# + | | ????????????######## #???????????# ???# # | | ????????????# #?????#?????# ?????# # | | ????????????# ##??? #?????# ??????# # | | ????????????# ##??? #?????????????# # | | ????????????# """"" ##### #?????????????##### | | ????????????# """"" #?????????????????? | | ????????????# """"" #???????????????### | | ????????????# * #??????????????## | | ????????????# % #??????????????#T | | ????????????# ###+### u##+#??????????????## # | | ????????????#+##+### # #? ?????????????#! ! | | ????????????# # # #?? #????????????#! ! | | ????????????# ! # # #??? #????????????#! ! | | ????????????#! # # %!#????#????????????#! ! | | ????????????# % # # #?????????????????#### | | ????????????# /# # #????????????????????# | | ????????????# / # # * #????????????????????# | | ????????????######## # % #????????????????????# | | ??????????????########### #????????????????????# | | ????????????## ## ##??????? ????????# | | ????????????# """ """ # [ #####// ???????# | | ?????????????# """ """!#/%! u ???????# | | ?????????????#!""" """[ !@%[ ???????+ | | ?????????????#!%[ *=%== [[ [ ???????# | | ?????????????# * ==! [%[ ################???# | | ?????????????# = ![! #?????????# # | | ?????????????# %= #?????????# | | ?????????????########## #?????????+ % | | ??????????????????????g %g ?????????# | | ?????????????????????? =r ## ????????# #### | | ????????????????????? != ? "??????????????? | | ????????????????????? g ??""???????????? ? | | ????????????????????! # ###?? ???????????##??? | | ????????????????????##### #????????????????????? | | ????????????????????????# #????????????????????? | | ???????????????????????? ????????????????????? | | ???????????????????????? ????????????????????? | | ???????????????????????? %[ ????????????????????? | | ???????????????????????? [ ????????????????????? | | ???????????????????????????????????????????????### | | ???????????????????????????????????????????????#[[ | | ???????????????????????????????????????????????#[[ | | ???????????????????????????????????????????????#[[ | | ???????????????????????????????????????????????# | | ???????????????????????????????????????????????#] | | ???????????????????????????????????????????????#]] | | ???????????????????????????????????????????????### | +----------------------------------------------------+ Best States ------------- Heat Dissipation 39 Energy Generation 14 Energy Capacity 160 Matter Stores 300 Matter Capacity 300 Sight Range 16 Terrain Scan Density 10 Evasion (%) 40 Recoil Reduction 4 Item Schematics ----------------- None Robot Schematics ------------------ None Fabricated ------------ Nothing Repaired ---------- Nothing Studied --------- None Alien Tech Used ----------------- None Achievements -------------- None Challenges ------------ None Game ------ Seed FusionCooledRedistributor Manual? 0 Play Time 00:15:56 Cumulative 144.4 hours Start 2026.07.30 @ 20:26:54 End 2026.07.30 @ 20:38:48 Sessions 1 Manual Loads 0 Difficulty Rogue Special Mode None Game No. 294 Rogue 294 Adventurer 0 Explorer 0 Win Type - Total 1 Types 1/0/0/0/0/0/0/0/0/0 Lore% 56 Gallery% 56 Achievement% 44 Wizard Run 0 Options --------- Layout 2 ASCII 0 Keyboard 1 Movement Arrows Keybinds 0 Fullscreen 1 Font 24/Smallcaps Map View 50x44 Zoom Use 0% Tactical HUD 1 Map Filters NONE Filters NONE Steam 1 RUN: e2117202-1fb4-43b4-9424-e95bf939e4d0